bitfinex-derivatives/quotes_SOLF0:USTF0_20241029
["timestamp","ask_amount","ask_price","bid_price","bid_amount"]
[1730168273706,38.12152533,180.36,180.21,38.12152533]
[1730168273906,2.7752,180.32,180.25,2.7762]
[1730168274102,7.5,180.31,180.21,38.12152533]
[1730168274409,7.5,180.31,180.27,2.7759]
[1730168274599,7.5,180.31,180.21,38.12152533]
[1730168274803,7.5,180.31,180.16,7.5]
[1730168274804,7.5,180.31,180.18,38.12152533]
[1730168275001,7.5,180.31,180.21,38.12152533]
[1730168276304,7.5,180.31,180.24,2.7764]
[1730168276505,7.5,180.31,180.21,38.12152533]
[1730168277211,7.5,180.31,180.27,2.7758]
[1730168277505,1.2756,180.39,180.24,38.12152533]
[1730168277711,7.24,180.38,180.33,2.7749]
[1730168277907,7.24,180.38,180.24,38.12152533]
[1730168278211,7.24,180.37,180.24,38.12152533]
[1730168278410,10.0145,180.37,180.32,2.7751]
[1730168279106,4.046,180.4,180.34,2.7747]
[1730168279416,7.24,180.39,180.29,38.12152533]
[1730168279711,38.12152533,180.42,180.29,38.12152533]
[1730168279712,7.24,180.42,180.41,2.7737]
[1730168279904,7.24,180.42,180.29,45.36152533]
[1730168281616,7.24,180.42,180.29,38.12152533]
[1730168282412,7.24,180.46,180.33,38.12152533]
[1730168282598,38.12152533,180.42,180.15,5.5554]
[1730168282909,7.24,180.46,180.29,2.7755]
[1730168282910,2.775,180.34,180.29,2.7755]
[1730168283098,38.12152533,180.39,180.25,38.12152533]
[1730168283099,7.24,180.35,180.25,38.12152533]
[1730168283506,7.24,180.35,180.26,2.776]
[1730168283806,7.24,180.35,180.21,38.12152533]
[1730168284202,7.24,180.35,180.19,38.12152533]
[1730168284808,38.12152533,180.33,180.19,38.12152533]
[1730168285121,2.7758,180.29,180.23,2.7765]
[1730168285315,7.24,180.28,180.19,38.12152533]
[1730168286408,7.24,180.28,180.25,2.7761]
[1730168286613,7.24,180.32,180.21,38.12152533]
[1730168287016,2.7753,180.31,180.21,38.12152533]
[1730168287210,7.24,180.32,180.21,38.12152533]
[1730168287518,10.0153,180.32,180.26,2.776]
[1730168287720,10.0153,180.32,180.21,38.12152533]
[1730168288112,2.7758,180.28,180.24,2.7764]
[1730168288314,7.24,180.32,180.19,38.12152533]
[1730168288619,2.7755,180.3,180.22,2.7766]
[1730168288819,7.24,180.32,180.19,38.12152533]
[1730168289115,7.24,180.32,180.15,7.24]
[1730168289116,7.24,180.32,180.22,38.12152533]
[1730168289315,59.94,180.37,180.24,38.12152533]
[1730168289618,7.24,180.36,180.24,38.12152533]
[1730168289819,10.0146,180.36,180.24,38.12152533]
[1730168290323,3.9608,180.4,180.3,2.7753]
[1730168290520,7.60956719,180.5,180.22,38.12152533]
[1730168290521,1.3063,180.48,180.29,38.12152533]
[1730168290822,2.7727,180.48,180.42,2.7735]
[1730168291022,2.5431,180.49,180.36,38.12152533]
[1730168291322,38.12152533,180.47,180.29,38.12152533]
[1730168291516,38.12152533,180.47,180.29,45.36152533]
[1730168291822,38.12152533,180.44,180.29,45.36152533]
[1730168292026,7.24,180.43,180.33,2.7749]
[1730168292427,8.5463,180.43,180.26,38.12152533]
[1730168293518,7.24,180.43,180.32,38.12152533]
[1730168294226,10.0135,180.43,180.32,38.12152533]
[1730168294627,2.7728,180.48,180.42,2.7736]
[1730168294925,2.5431,180.49,180.38,38.12152533]
[1730168295120,2.5431,180.49,180.35,38.12152533]
[1730168295316,2.7732,180.45,180.37,2.7743]
[1730168295519,2.5431,180.49,180.37,2.7743]
[1730168297428,2.773,180.46,180.37,2.7743]
[1730168298728,7.24,180.45,180.32,38.12152533]
[1730168298925,7.24,180.45,180.31,7.24]
[1730168298926,2.5431,180.49,180.38,38.12152533]
[1730168299126,7.24,180.48,180.38,38.12152533]
[1730168299326,10.0127,180.48,180.39,2.7739]
[1730168299824,7.24,180.48,180.38,38.12152533]
[1730168300328,7.24,180.48,180.4,2.7739]
[1730168300526,7.24,180.48,180.35,38.12152533]
[1730168300527,45.36152533,180.48,180.35,38.12152533]
[1730168301032,7.24,180.48,180.35,38.12152533]
[1730168301829,7.24,180.48,180.34,7.24]
[1730168301830,7.60956719,180.56,180.42,38.12152533]
[1730168302125,20.45631431,180.58,180.42,38.12152533]
[1730168302126,7.60956719,180.58,180.42,38.12152533]
[1730168302326,41.87232533,180.59,180.42,38.12152533]
[1730168302327,11.24077218,180.57,180.47,2.7728]
[1730168302529,49.48189252,180.59,180.47,38.12152533]
[1730168302530,11.36036719,180.59,180.47,38.12152533]
[1730168302718,10.0112,180.58,180.5,2.7723]
[1730168302915,10.0112,180.58,180.45,38.12152533]
[1730168302916,2.5052,180.59,180.47,38.12152533]
[1730168303130,2.5052,180.59,180.48,38.12152533]
[1730168303329,2.7717,180.55,180.46,2.7729]
[1730168303523,7.24,180.56,180.45,38.12152533]
[1730168303833,2.7716,180.55,180.46,2.7729]
[1730168304217,7.24,180.56,180.43,38.12152533]
[1730168304830,2.7723,180.51,180.44,2.7732]
[1730168305127,7.24,180.56,180.29,43.67262533]
[1730168305128,45.36152533,180.56,180.39,38.12152533]
[1730168305427,2.7724,180.5,180.42,2.7735]
[1730168305631,7.24,180.5,180.39,38.12152533]
[1730168305927,7.24,180.5,180.36,38.12152533]
[1730168306118,7.24,180.5,180.39,38.12152533]
[1730168306726,7.24,180.5,180.41,2.7736]
[1730168307226,2.7726,180.49,180.39,38.12152533]
[1730168307433,7.24,180.5,180.42,38.12152533]
[1730168308017,7.24,180.5,180.42,2.7735]
[1730168308222,7.24,180.5,180.39,38.12152533]
[1730168308427,7.24,180.5,180.45,2.7731]
[1730168308623,7.24,180.5,180.43,38.12152533]
[1730168308823,8.5127,180.55,180.46,38.12152533]
[1730168309130,2.7719,180.54,180.48,2.7727]
[1730168309324,1.2327,180.55,180.48,2.7727]
[1730168309827,1.2327,180.55,180.46,38.12152533]
[1730168310027,1.2327,180.55,180.43,38.12152533]
[1730168310226,1.2327,180.55,180.4,7.28]
[1730168310440,2.7724,180.51,180.44,2.7732]
[1730168310634,39.35422533,180.55,180.4,7.28]
[1730168311536,2.7726,180.49,180.43,2.7735]
[1730168312035,1.2327,180.55,180.4,7.28]
[1730168312235,1.2327,180.55,180.46,38.12152533]
[1730168312435,1.2327,180.55,180.43,38.12152533]
[1730168312630,39.35422533,180.55,180.4,7.28]
[1730168313023,39.35422533,180.55,180.44,2.7733]
[1730168313024,2.7723,180.51,180.44,2.7733]
[1730168313223,39.35422533,180.55,180.4,7.28]
[1730168313428,38.12152533,180.52,180.36,38.12152533]
[1730168313644,2.7731,180.46,180.36,38.12152533]
[1730168313825,45.40152533,180.49,180.36,38.12152533]
[1730168314229,7.28,180.49,180.36,38.12152533]
[1730168314631,7.28,180.49,180.38,2.7741]
[1730168314632,2.7734,180.44,180.38,2.7741]
[1730168314834,45.40152533,180.49,180.36,38.12152533]
[1730168315326,2.7733,180.45,180.39,2.7739]
[1730168315725,45.40152533,180.49,180.36,38.12152533]
[1730168316033,1.184,180.48,180.36,38.12152533]
[1730168316439,38.12152533,180.46,180.33,38.12152533]
[1730168316638,1.1981,180.45,180.33,38.12152533]
[1730168317328,1.1981,180.45,180.3,38.12152533]
[1730168317632,1.1981,180.45,180.27,38.12152533]
[1730168317633,38.12152533,180.43,180.27,38.12152533]
[1730168317835,7.28,180.42,180.27,38.12152533]
[1730168318028,2.7749,180.34,180.28,2.7756]
[1730168318229,7.28,180.36,180.24,38.12152533]
[1730168318754,2.775,180.33,180.27,2.7759]
[1730168318931,2.775,180.33,180.24,38.12152533]
[1730168319126,7.28,180.36,180.28,2.7756]
[1730168319127,2.7749,180.34,180.28,2.7756]
[1730168319332,7.28,180.36,180.24,38.12152533]
[1730168319528,7.28,180.36,180.27,38.12152533]
[1730168319733,7.28,180.36,180.3,38.12152533]
[1730168319934,7.28,180.41,180.3,38.12152533]
[1730168320136,7.28,180.41,180.33,38.12152533]
[1730168320341,7.28,180.43,180.33,38.12152533]
[1730168320535,7.28,180.43,180.29,38.12152533]
[1730168320536,7.28,180.43,180.36,38.12152533]
[1730168320736,7.28,180.46,180.41,2.7736]
[1730168320935,7.28,180.46,180.36,38.12152533]
[1730168321434,7.28,180.46,180.32,45.40152533]
[1730168322545,2.7737,180.42,180.32,45.40152533]
[1730168322839,61.1153,180.51,180.38,38.12152533]
[1730168322840,1.1953,180.51,180.38,38.12152533]
[1730168323051,2.7733,180.45,180.39,2.774]
[1730168323231,2.7733,180.45,180.38,38.12152533]
[1730168325042,2.7728,180.47,180.38,38.12152533]
[1730168325242,6.96,180.48,180.38,38.12152533]
[1730168325542,7.60956719,180.57,180.51,2.7719]
[1730168325543,6.96,180.57,180.51,2.7719]
[1730168325738,2.7714,180.55,180.47,38.12152533]
[1730168326049,6.96,180.57,180.49,2.7721]
[1730168326237,2.7714,180.55,180.49,2.7721]
[1730168326649,6.96,180.58,180.52,2.7717]
[1730168326841,9.731,180.58,180.52,2.7717]
[1730168327138,6.96,180.59,180.5,38.12152533]
[1730168327735,9.7307,180.59,180.51,2.7719]
[1730168328135,2.7707,180.59,180.51,2.7719]
[1730168328545,2.7707,180.59,180.5,38.12152533]
[1730168328739,6.96,180.6,180.5,38.12152533]
[1730168328936,5.3203,180.61,180.5,38.12152533]
[1730168329140,8.85786719,180.67,180.53,38.12152533]
[1730168329444,6.96,180.71,180.61,38.12152533]
[1730168329648,6.96,180.71,180.66,2.7697]
[1730168329849,2.7689,180.71,180.64,38.12152533]
[1730168330050,1.2829,180.74,180.62,38.12152533]
[1730168330541,2.769,180.7,180.62,38.12152533]
[1730168331054,1.2829,180.74,180.65,38.12152533]
[1730168331647,2.7686,180.73,180.65,40.89132533]
[1730168332150,2.7688,180.72,180.65,38.12152533]
[1730168332447,1.2829,180.74,180.62,38.12152533]
[1730168332651,2.7693,180.69,180.61,2.7703]
[1730168333252,39.40442533,180.74,180.59,38.12152533]
[1730168333649,38.12152533,180.71,180.56,38.12152533]
[1730168333845,39.40442533,180.74,180.59,38.12152533]
[1730168334049,39.40442533,180.74,180.52,59.9]
[1730168334050,38.12152533,180.71,180.56,38.12152533]
[1730168334254,38.12152533,180.68,180.53,45.08152533]
[1730168334560,6.96,180.67,180.53,38.12152533]
[1730168334757,6.96,180.66,180.53,38.12152533]
[1730168335057,6.96,180.66,180.54,38.12152533]
[1730168335448,1.3085,180.65,180.54,38.12152533]
[1730168336452,1.2191,180.64,180.51,38.12152533]
[1730168337263,39.34062533,180.64,180.51,38.12152533]
[1730168337763,1.2191,180.64,180.51,38.12152533]
[1730168338257,1.2191,180.64,180.54,38.12152533]
[1730168339063,39.34062533,180.64,180.51,38.12152533]
[1730168339460,39.34062533,180.64,180.48,38.12152533]
[1730168340057,2.7713,180.56,180.49,2.7722]
[1730168340459,6.96,180.58,180.41,59.88]
[1730168340764,45.08152533,180.58,180.45,38.12152533]
[1730168341161,2.7718,180.52,180.45,38.12152533]
[1730168341562,6.96,180.6,180.48,38.12152533]
[1730168341762,2.7712,180.57,180.5,2.7721]
[1730168341963,2.7712,180.57,180.48,38.12152533]
[1730168342356,6.96,180.6,180.54,38.12152533]
[1730168342852,61.1885,180.65,180.54,38.12152533]
[1730168343063,6.96,180.64,180.54,38.12152533]
[1730168343254,6.96,180.64,180.48,38.12152533]
[1730168343455,38.12152533,180.62,180.48,38.12152533]
[1730168344765,38.12152533,180.62,180.5,2.772]
[1730168344967,38.12152533,180.59,180.46,38.12152533]
[1730168345170,6.96,180.58,180.43,38.12152533]
[1730168346070,38.12152533,180.59,180.45,38.12152533]
[1730168346266,6.96,180.57,180.45,38.12152533]
[1730168346570,6.96,180.57,180.47,23.4470265]
[1730168346770,6.96,180.57,180.5,23.4470265]
[1730168346966,6.96,180.62,180.53,23.4470265]
[1730168347376,6.96,180.62,180.48,6.96]
[1730168347377,6.96,180.62,180.5,23.4470265]
[1730168347671,6.96,180.62,180.52,2.7718]
[1730168348179,2.7707,180.59,180.52,2.7718]
[1730168348361,2.7707,180.59,180.53,2.7716]
[1730168349467,6.96,180.62,180.53,2.7716]
[1730168349468,2.7709,180.58,180.53,2.7716]
[1730168349871,6.96,180.62,180.54,2.7714]
[1730168350070,6.96,180.62,180.5,23.4470265]
[1730168350071,30.4070265,180.62,180.5,23.4470265]
[1730168350272,23.4470265,180.59,180.44,23.4470265]
[1730168350567,23.4470265,180.57,180.44,23.4470265]
[1730168350768,8.2647,180.56,180.44,23.4470265]
[1730168351074,8.2647,180.56,180.45,2.7729]
[1730168351270,8.2647,180.56,180.4,23.4470265]
[1730168351271,1.1868,180.55,180.4,23.4470265]
[1730168351662,2.7726,180.48,180.41,2.7734]
[1730168351864,6.96,180.49,180.41,2.7734]
[1730168352169,6.96,180.49,180.4,23.4470265]
[1730168352868,6.96,180.49,180.37,23.4470265]
[1730168353063,6.96,180.49,180.32,30.4070265]
[1730168353268,2.7736,180.41,180.33,2.7746]
[1730168353471,2.7736,180.41,180.32,23.4470265]
[1730168353472,6.96,180.42,180.32,23.4470265]
[1730168353770,6.96,180.44,180.37,23.4470265]
[1730168353969,9.7328,180.46,180.39,2.7738]
[1730168354166,6.96,180.45,180.34,23.4470265]
[1730168354484,8.1778,180.45,180.31,23.4470265]
[1730168354776,8.1778,180.45,180.34,23.4470265]
[1730168355165,10.9507,180.45,180.38,2.7739]
[1730168355369,7.8778,180.45,180.36,23.4470265]
[1730168355972,7.8778,180.45,180.33,23.4470265]
[1730168356578,7.8778,180.45,180.3,23.4470265]
[1730168356873,1.1822,180.44,180.3,23.4470265]
[1730168357269,1.1822,180.44,180.35,2.7744]
[1730168357270,1.1819,180.43,180.35,2.7744]
[1730168357467,1.1819,180.43,180.3,23.4470265]
[1730168357673,2.7734,180.42,180.3,23.4470265]
[1730168357870,1.1819,180.43,180.33,23.4470265]
[1730168358277,7.8778,180.45,180.36,23.4470265]
[1730168358873,6.66,180.46,180.36,23.4470265]
[1730168359076,23.4470265,180.44,180.2,59.88]
[1730168359277,23.4470265,180.44,180.33,2.7746]
[1730168359278,2.7739,180.39,180.33,2.7746]
[1730168359473,6.66,180.39,180.29,23.4470265]
[1730168359670,6.66,180.39,180.33,23.4470265]
[1730168360372,23.4470265,180.47,180.33,23.4470265]
[1730168360373,6.66,180.43,180.33,23.4470265]
[1730168360981,9.4332,180.43,180.33,23.4470265]
[1730168361477,2.7734,180.42,180.36,2.7741]
[1730168361669,6.66,180.43,180.33,23.4470265]
[1730168362474,1.1816,180.49,180.36,23.4470265]
[1730168362673,1.1816,180.49,180.39,23.4470265]
[1730168362875,6.66,180.48,180.39,23.4470265]
[1730168363281,9.4324,180.48,180.42,2.7732]
[1730168363469,6.66,180.48,180.42,2.7732]
[1730168363872,6.66,180.48,180.44,2.773]
[1730168364074,6.66,180.48,180.41,23.4470265]
[1730168364272,2.7728,180.46,180.39,23.4470265]
[1730168364574,2.7728,180.46,180.42,2.7733]
[1730168364775,6.66,180.48,180.39,23.4470265]
[1730168364980,6.66,180.48,180.39,26.2208265]
[1730168365176,6.66,180.48,180.36,23.4470265]
[1730168365379,2.7734,180.42,180.37,2.774]
[1730168365575,6.66,180.48,180.33,30.1070265]
[1730168365882,2.7731,180.44,180.37,2.7741]
[1730168366073,1.3002,180.49,180.39,23.4470265]
[1730168366271,6.66,180.48,180.36,23.4470265]
[1730168366467,2.7734,180.42,180.33,30.1070265]
[1730168366673,6.66,180.48,180.33,30.1070265]
[1730168367068,2.7735,180.42,180.37,2.774]
[1730168367268,6.66,180.48,180.33,30.1070265]
[1730168367479,6.66,180.48,180.36,23.4470265]
[1730168368174,6.66,180.48,180.34,23.4470265]
[1730168368577,2.7738,180.4,180.34,26.2214265]
[1730168368778,2.7738,180.4,180.34,23.4470265]
[1730168369081,2.7738,180.4,180.3,6.66]
[1730168369082,6.66,180.42,180.3,23.4470265]
[1730168369278,6.66,180.42,180.33,2.7746]
[1730168369279,2.7741,180.38,180.33,2.7746]
[1730168369582,6.66,180.42,180.33,23.4470265]
[1730168369882,2.7735,180.41,180.33,23.4470265]
[1730168370178,6.66,180.42,180.33,23.4470265]
[1730168370380,6.66,180.47,180.41,2.7735]
[1730168370699,6.66,180.47,180.36,23.4470265]
[1730168370978,6.66,180.47,180.33,23.4470265]
[1730168371583,30.1070265,180.47,180.33,23.4470265]
[1730168371974,2.7732,180.43,180.35,2.7744]
[1730168372175,30.1070265,180.47,180.35,2.7744]
[1730168372375,30.1070265,180.47,180.33,23.4470265]
[1730168372682,2.7735,180.42,180.36,2.7742]
[1730168372883,30.1070265,180.47,180.33,23.4470265]
[1730168373083,2.7732,180.43,180.36,2.7743]
[1730168373284,1.1819,180.5,180.4,23.4470265]
[1730168373979,1.1819,180.5,180.42,23.4470265]
[1730168374181,9.4319,180.52,180.46,2.7727]
[1730168374386,6.66,180.52,180.46,2.7727]
[1730168374574,6.66,180.52,180.42,23.4470265]
[1730168374774,2.772,180.51,180.46,2.7726]
[1730168375088,6.66,180.52,180.42,23.4470265]
[1730168375276,6.66,180.52,180.4,23.4470265]
[1730168376072,2.7721,180.5,180.44,2.7729]
[1730168376278,6.66,180.52,180.4,23.4470265]
[1730168377781,2.7728,180.46,180.4,23.4470265]
[1730168378180,2.7728,180.46,180.37,23.4470265]
[1730168378382,6.66,180.52,180.4,23.4470265]
[1730168378587,6.66,180.52,180.43,23.4470265]
[1730168378780,1.3101,180.55,180.5,2.772]
[1730168378988,2.7715,180.54,180.5,2.772]
[1730168379485,6.66,180.57,180.46,23.4470265]
[1730168379689,2.7714,180.55,180.46,23.4470265]
[1730168379990,6.66,180.57,180.46,23.4470265]
[1730168380189,2.7717,180.53,180.48,2.7724]
[1730168380490,6.66,180.57,180.43,23.4470265]
[1730168381191,6.66,180.57,180.46,23.4470265]
[1730168381376,30.1070265,180.57,180.43,23.4470265]
[1730168381580,30.1070265,180.57,180.46,2.7726]
[1730168381991,2.7716,180.54,180.49,2.7721]
[1730168382292,2.71003258,180.66,180.43,23.4470265]
[1730168382293,6.66,180.63,180.52,23.4470265]
[1730168382875,7.9336,180.63,180.52,23.4470265]
[1730168384483,2.7706,180.61,180.55,2.7713]
[1730168385086,2.7703,180.62,180.57,2.771]
[1730168386385,2.77,180.64,180.58,2.7708]
[1730168386592,1.2056,180.65,180.43,28.9933265]
[1730168386593,23.4470265,180.69,180.55,23.4470265]
[1730168386788,23.4470265,180.69,180.54,6.44]
[1730168387087,23.4470265,180.69,180.56,2.7711]
[1730168387292,8.9659,180.7,180.5,23.4470265]
[1730168387293,23.4470265,180.66,180.5,23.4470265]
[1730168387492,2.771,180.58,180.52,2.7718]
[1730168387786,6.44,180.6,180.44,6.44]
[1730168387983,1.2574,180.57,180.43,23.4470265]
[1730168388181,2.7718,180.52,180.47,2.7725]
[1730168388387,6.44,180.56,180.43,23.4470265]
[1730168389489,2.7722,180.5,180.44,2.773]
[1730168389686,6.44,180.56,180.41,6.44]
[1730168390293,6.44,180.56,180.43,23.4470265]
[1730168390685,2.7716,180.54,180.48,2.7723]
[1730168390884,23.4470265,180.55,180.41,23.4470265]
[1730168391189,6.44,180.56,180.44,23.4470265]
[1730168391781,6.44,180.56,180.46,23.4470265]
[1730168392283,2.7714,180.55,180.49,2.7721]
[1730168392481,6.44,180.56,180.45,6.44]
[1730168392685,6.44,180.56,180.44,23.4470265]
[1730168392886,2.7718,180.52,180.47,2.7724]
[1730168394586,6.44,180.56,180.44,23.4470265]
[1730168394784,6.44,180.56,180.47,23.4470265]
[1730168395794,6.44,180.56,180.44,23.4470265]
[1730168395989,6.44,180.56,180.43,6.44]
[1730168396185,2.772,180.51,180.46,2.7727]
[1730168396388,6.44,180.56,180.41,23.4470265]
[1730168396699,2.7718,180.52,180.44,23.4470265]
[1730168397085,6.44,180.56,180.44,23.4470265]
[1730168397284,2.7717,180.53,180.48,2.7723]
[1730168397682,6.44,180.55,180.44,23.4470265]
[1730168398391,6.44,180.55,180.5,2.772]
[1730168398784,2.772,180.51,180.47,2.7725]
[1730168398995,6.44,180.55,180.41,23.4470265]
[1730168399191,6.44,180.55,180.46,23.4470265]
[1730168399597,2.7715,180.55,180.5,2.7721]
[1730168399990,2.7716,180.54,180.49,2.7722]
[1730168400195,7.6974,180.57,180.46,23.4470265]
[1730168400391,31.1444265,180.57,180.43,23.4470265]
[1730168400594,2.7718,180.53,180.48,2.7723]
[1730168400797,59.88,180.7,180.51,23.4470265]
[1730168401098,10.0505,180.69,180.57,23.4470265]
[1730168401286,2.7698,180.66,180.57,23.4470265]
[1730168401485,10.0505,180.69,180.57,23.4470265]
[1730168401892,6.44,180.68,180.57,23.4470265]
[1730168402095,6.44,180.68,180.54,29.8870265]
[1730168402397,6.44,180.68,180.54,23.4470265]
[1730168402600,6.44,180.68,180.57,23.4470265]
[1730168403097,3.6105,180.69,180.64,2.7699]
[1730168403296,23.4470265,180.75,180.62,23.4470265]
[1730168403501,6.44,180.75,180.65,23.4470265]
[1730168403691,23.4470265,180.76,180.61,29.8870265]
[1730168403998,6.44,180.76,180.64,23.4470265]
[1730168404199,9.2082,180.76,180.61,29.8870265]
[1730168404398,6.44,180.76,180.66,23.4470265]
[1730168404609,6.44,180.76,180.61,29.8870265]
[1730168404901,6.44,180.76,180.64,2.7698]
[1730168404902,2.769,180.71,180.64,2.7698]
[1730168405299,2.7693,180.69,180.63,2.7701]
[1730168405500,2.7693,180.69,180.59,23.4470265]
[1730168405698,2.7693,180.69,180.57,6.44]
[1730168405699,6.44,180.7,180.45,16.66]
[1730168405899,23.4470265,180.65,180.51,23.4470265]
[1730168406105,7.65,180.64,180.51,23.4470265]
[1730168406698,7.65,180.64,180.48,23.4470265]
[1730168406699,23.4470265,180.62,180.48,23.4470265]
[1730168406897,23.4470265,180.62,180.45,23.4470265]
[1730168407099,7.65,180.64,180.47,2.7724]
[1730168407100,2.7716,180.54,180.47,2.7724]
[1730168407406,6.44,180.54,180.45,23.4470265]
[1730168407804,6.44,180.54,180.49,2.7722]
[1730168408007,6.44,180.54,180.45,23.4470265]
[1730168408516,6.44,180.58,180.48,23.4470265]
[1730168409005,2.7713,180.55,180.49,2.7722]
[1730168409401,6.44,180.58,180.48,23.4470265]
[1730168409710,2.771,180.57,180.48,23.4470265]
[1730168409909,6.44,180.58,180.48,23.4470265]
[1730168413109,1.21,180.64,180.54,23.4470265]
[1730168413304,6.44,180.62,180.54,23.4470265]
[1730168413495,6.44,180.64,180.54,23.4470265]
[1730168414096,2.7703,180.62,180.57,2.771]
[1730168414299,6.44,180.64,180.5,23.4470265]
[1730168414498,1.1841,180.63,180.5,23.4470265]
[1730168415305,1.1841,180.63,180.54,2.7714]
[1730168415306,2.7708,180.59,180.54,2.7714]
[1730168415898,1.1841,180.63,180.55,2.7712]
[1730168415899,2.7707,180.6,180.55,2.7712]
[1730168416098,30.70264299,180.81,180.5,23.4470265]
[1730168416302,1.2325,180.71,180.64,23.4470265]
[1730168416500,1.2824,180.76,180.66,23.4470265]
[1730168417211,2.7685,180.74,180.69,2.7692]
[1730168417407,1.2824,180.76,180.69,23.4470265]
[1730168417614,6.4,180.81,180.69,23.4470265]
[1730168417804,7.6838,180.81,180.66,23.4470265]
[1730168418803,7.6838,180.81,180.69,2.7691]
[1730168418804,2.768,180.77,180.69,2.7691]
[1730168419003,1.2838,180.81,180.69,23.4470265]
[1730168419216,6.4,180.8,180.69,23.4470265]
[1730168419415,2.7681,180.77,180.71,2.7689]
[1730168419811,6.4,180.8,180.69,23.4470265]
[1730168420114,104.33507869,181.14,180.75,23.4470265]
[1730168420115,23.4470265,180.89,180.75,23.4470265]
[1730168420311,6.4,180.88,180.73,6.4]
[1730168420500,6.4,180.88,180.72,29.8470265]
[1730168420705,23.4470265,180.85,180.69,23.4470265]
[1730168420901,23.4470265,180.82,180.69,23.4470265]
[1730168421106,7.6328,180.81,180.69,23.4470265]
[1730168421302,7.6328,180.81,180.66,29.8470265]
[1730168421511,7.6328,180.81,180.58,59.84]
[1730168421512,23.4470265,180.79,180.58,59.84]
[1730168421713,2.5704,180.78,180.62,23.4470265]
[1730168421912,2.5704,180.78,180.64,23.4470265]
[1730168422110,2.5704,180.78,180.62,23.4470265]
[1730168422111,2.5704,180.78,180.68,23.4470265]
[1730168422823,2.7681,180.77,180.7,2.769]
[1730168423008,2.5704,180.78,180.68,23.4470265]
[1730168423810,2.5704,180.78,180.72,2.7687]
[1730168423811,5.3383,180.78,180.72,2.7687]
[1730168424417,2.5704,180.78,180.72,2.7687]
[1730168424613,2.7684,180.75,180.7,2.769]
[1730168424812,2.7684,180.75,180.68,23.4470265]
[1730168424813,2.5704,180.78,180.68,23.4470265]
[1730168425012,2.5704,180.78,180.65,6.4]
[1730168425013,7.6128,180.81,180.71,23.4470265]
[1730168425214,29.8270265,180.81,180.67,23.4470265]
[1730168425721,2.7683,180.75,180.7,2.769]
[1730168426420,1.2285,180.8,180.7,2.769]
[1730168426421,7.6085,180.8,180.7,23.4470265]
[1730168426724,1.2735,180.85,180.7,23.4470265]
[1730168426920,2.7674,180.81,180.75,2.7682]
[1730168427119,1.2735,180.85,180.75,2.7682]
[1730168427317,23.4470265,180.81,180.67,29.8270265]
[1730168427517,6.38,180.8,180.67,29.8270265]
[1730168427912,6.38,180.8,180.65,29.8270265]
[1730168428118,2.7683,180.75,180.65,29.8270265]
[1730168428425,2.4284,180.79,180.65,29.8270265]
[1730168429008,2.7683,180.75,180.69,2.7692]
[1730168429208,25.8754265,180.79,180.62,23.4470265]
[1730168429415,25.8754265,180.79,180.63,6.38]
[1730168429817,25.8754265,180.79,180.62,23.4470265]
[1730168429818,23.4470265,180.75,180.62,23.4470265]
[1730168430010,23.4470265,180.7,180.56,23.4470265]
[1730168430211,23.4470265,180.7,180.47,59.82]
[1730168430212,1.2305,180.69,180.53,23.4470265]
[1730168430412,3.99333035,180.74,180.56,23.4470265]
[1730168430613,3.99333035,180.74,180.5,23.4470265]
[1730168430614,1.2509,180.74,180.64,23.4470265]
[1730168430918,8.8536,180.77,180.67,23.4470265]
[1730168431227,59.82,180.87,180.67,23.4470265]
[1730168431228,32.3796265,180.85,180.7,23.4470265]
[1730168431521,33.6101265,180.85,180.7,23.4470265]
[1730168432231,3.7831,180.85,180.73,23.4470265]